Cogmind - Beta 13 @@@ ROGUE MODE // 2024.05.10 @ 15:35:34 Player: Olafz Result: Destroyed by S-27 Virus with Autogun Performance ------------- Evolutions (4) 2000 Regions Visited (10) 2000 Robots Destroyed (88) 440 Value Destroyed (2847) 2847 Prototype IDs (15) 300 Alien Tech Used (0) 0 Bonus (437) 437 TOTAL SCORE: 8024 Bonus ------- Follower Combat Kills 137 Met Data Miner 300 Cogmind --------- Core Integrity 0/850 Matter 88/300 Energy 100/100 System Corruption 19% Temperature Cool (0) Movement Hovering (60) Location -6/Factory Parts ------- > --- POWER (1) -------- (None) > --- PROPULSION (4) --- Gravmag Array > --- UTILITY (7) ------ (None) > --- WEAPON (3) ------- (None) > --- INVENTORY (5) ---- Armored Leg Armored Huge Wheel Improved Targeting Computer Force Lance Peak State ------------ > --- POWER ------------ Light Antimatter Reactor > --- PROPULSION ------- Titanium Leg Flexi-carbon Leg Flexi-carbon Leg Enhanced Flexi-carbon Leg > --- UTILITY ---------- High-capacity Storage Unit Advanced Energy Well Advanced Signal Interpreter Armor Integrity Analyzer Layered Medium Armor Plating > --- WEAPON ----------- Gauss Rifle Flak Gun Precision Assault Rifle > --- INVENTORY -------- Aluminum Leg Carbon-fiber Leg Medium Storage Unit Large Storage Unit Compact Matter Pod Advanced Weight Redist. System Advanced Signal Interpreter Gauss Cannon Mini Grenade Launcher Impact Mace Impact Mace [Rating: 66] Favorites ----------- Power Micro Nuclear Core Engine Ion Engine Power Core Micro Nuclear Core Reactor Cold Fusion Reactor Propulsion Titanium Leg Treads Improved Medium Treads Leg Titanium Leg Wheel Compact Wheel Hover Unit Improved Antigrav System Utility Large Storage Unit Device Improved Sensor Array Storage Large Storage Unit Processor Armor Integrity Analyzer Hackware Hacking Suite Protection Layered Medium Armor Plating Weapon Precision Assault Rifle Energy Gun Particle Gun Ballistic Gun Precision Assault Rifle Ballistic Cannon Gauss Cannon Launcher Fusion Bomb Launcher Impact Weapon Impact Mace Slashing Weapon Chainsword Build | -11 -10 -9 -8 -7 -7 -7 -6 -6 -6 -6 ------- Run | Yrd Mat Mat Mat Fac Low Dat Pro Fac Was Fac Slots Evolved 8 | . . 2 2 2 . . . 2 . . Power . | . . . . . . . . . . . Propulsion 2 | . . . 1 1 . . . . . . Utility 5 | . . 2 1 . . . . 2 . . Weapon 1 | . . . . 1 . . . . . . Parts Attached 129 | . 6 12 33 23 1 3 16 29 1 5 Power 20 | . 1 1 4 4 1 . 3 4 1 1 Engine 5 | . 1 1 2 . . . . 1 . . Core 11 | . . . 2 4 1 . 2 2 . . Reactor 4 | . . . . . . . 1 1 1 1 Propulsion 38 | . 2 6 10 6 . . 5 6 . 3 Treads 1 | . . . . . . . . 1 . . Leg 25 | . . . 9 6 . . 5 5 . . Wheel 10 | . 2 6 1 . . . . . . 1 Hover 2 | . . . . . . . . . . 2 Flight . | . . . . . . . . . . . Utility 35 | . 2 2 9 3 . . 4 15 . . Device 12 | . 1 1 3 2 . . 1 4 . . Storage 11 | . 1 1 4 . . . 1 4 . . Processor 5 | . . . . 1 . . 1 3 . . Hackware 3 | . . . 1 . . . . 2 . . Protection 4 | . . . 1 . . . 1 2 . . Artifact . | . . . . . . . . . . . Weapon 36 | . 1 3 10 10 . 3 4 4 . 1 Energy Gun 1 | . . . 1 . . . . . . . Energy Cannon . | . . . . . . . . . . . Ballistic Gun 27 | . 1 3 9 7 . 3 3 1 . . Ballistic Cannon 1 | . . . . . . . . 1 . . Launcher 1 | . . . . . . . . . . 1 Special Weapon . | . . . . . . . . . . . Impact Weapon 4 | . . . . 1 . . 1 2 . . Slashing Weapon 2 | . . . . 2 . . . . . . Piercing Weapon . | . . . . . . . . . . . Special Melee Weapon . | . . . . . . . . . . . Unidentified Prototypes 6 | . . . 1 1 . . 1 3 . . Corrupted Parts 1 | . . . . . . . 1 . . . System Corruption 2 | . . . . . . . 2 . . . Parts Lost 63 | . 1 4 19 4 . . 13 20 . 2 Power 10 | . 1 . 3 . . . 3 3 . . Propulsion 22 | . . 4 6 2 . . 3 6 . 1 Utility 16 | . . . 5 1 . . 4 6 . . Weapon 15 | . . . 5 1 . . 3 5 . 1 Highest Loss Streak 12 | . 1 3 12 1 . . 7 10 . 2 To Critical Strikes 1 | . . . . . . . . 1 . . Average Slot Usage (%) 84 | . 94 83 82 99 100 80 79 70 . 10 Engine 2 | . 13 11 4 . . . . . . . Core 3 | . . . 4 7 7 7 4 . . . Reactor 1 | . . . . . . . 1 4 . 3 Leg 19 | . 6 . 18 29 30 30 28 12 . . Wheel 3 | . 21 21 4 . . . . . . 1 Device 11 | . 10 18 12 14 15 15 5 5 . . Storage 11 | . 14 11 16 10 7 7 8 14 . . Processor 4 | . . . . 4 7 7 6 12 . . Hackware 3 | . . . 3 7 7 7 4 1 . . Ballistic Gun 15 | . 24 22 15 19 23 3 12 7 . . Impact Weapon 1 | . . . . . . . 3 4 . . Naked Turns 86 | . . . . . . . . 4 55 27 Heaviest Build 115 | 14 89 115 98 40 40 40 55 75 8 20 Greatest Support 85 | 20 26 32 45 66 61 61 69 85 3 28 Greatest Overweight (x) 4 | . 3 4 3 . . . . 3 2 . Average Overweight (x) . | . 2 2 . . . . . . . . Largest Inventory Capacity 25 | . 25 25 25 15 15 15 15 20 5 5 Average Capacity 15 | . 20 25 17 15 15 15 15 12 5 5 Most Carried 25 | . 12 25 25 15 15 15 15 13 5 5 Average Carried 12 | . 8 19 16 14 14 15 10 8 2 4 Final Capacity 25 | 8 25 25 15 15 15 15 15 5 5 5 Final Carried 23 | 6 12 23 15 14 15 15 10 . 4 5 Class Distribution -------------------- 57% | Mutant 18% | Skirmisher 13% | Scavenger-Mutant 5% | Scavenger-Skirmisher 5% | Scavenger-Gunner Dominant Class ---------------- Mutant | -10/Materials Mutant | -9/Materials Mutant | -8/Materials Skirmisher | -7/Factory Skirmisher | -7/Lower Caves Mutant | -7/Data Miner Mutant | -6/Proximity Caves Mutant | -6/Factory Mutant | -6/Waste Mutant | -6/Factory Resources | -11 -10 -9 -8 -7 -7 -7 -6 -6 -6 -6 ----------- Run | Yrd Mat Mat Mat Fac Low Dat Pro Fac Was Fac Matter Collected 3021 | 183 65 315 615 1035 18 . 280 510 . . Remotely 990 | . . . . 909 18 . 63 . . . Salvage Created 3412 | . 179 444 729 1234 . . 235 527 . 64 Parts 189 | . 14 31 36 67 . . 10 25 . 6 Haulers Intercepted 3 | . 1 . 1 1 . . . . . . Recyclers Shooed 3 | . . . . 2 . . . 1 . . Parts Field Recycled . | . . . . . . . . . . . Retrieved Matter . | . . . . . . . . . . . Parts Self-Destructed 14 | . . . . . 1 . 13 . . . Prevented . | . . . . . . . . . . . Kills | -11 -10 -9 -8 -7 -7 -7 -6 -6 -6 -6 ------- Run | Yrd Mat Mat Mat Fac Low Dat Pro Fac Was Fac Combat Hostiles Destroyed 60 | . 5 9 13 16 . . 4 11 . 2 Melee 4 | . . . . . . . 2 2 . . Guns 52 | . 5 9 13 16 . . 2 7 . . Cannons 1 | . . . . . . . . 1 . . AOE 2 | . . . . . . . . . . 2 Classes Destroyed 11 | . 3 3 1 3 . . 1 . . . Worker 8 | . . . 1 2 . . . 3 . 2 Builder 2 | . . . . 2 . . . . . . Hauler 3 | . 1 . 1 1 . . . . . . Recycler 6 | . . . . 5 . . . 1 . . Watcher 9 | . . 1 . 5 . . . 3 . . Swarmer 16 | . 3 . . 7 . . . 6 . . Grunt 26 | . 2 5 10 5 . . 2 . . 2 Duelist 2 | . . 1 1 . . . . . . . Sentry 7 | . . 3 2 2 . . . . . . Hunter 5 | . . . . . . . 2 3 . . Programmer 4 | . . . . 2 . . . 2 . . Best Kill Streak 9 | . 3 3 3 9 . . 1 4 . 4 Combat Bots Only 7 | . 3 3 3 7 . . 1 3 . 2 Max Kills in Single Turn 2 | . 2 2 1 2 . . 1 2 . 2 Gunslinging 1 | . 1 1 . . . . . 1 . . Exploded 1 | . . . . . . . . . . 1 Melee 1 | . . . . . . . 1 1 . . Uniques/NPCs Destroyed . | . . . . . . . . . . . Combat | -11 -10 -9 -8 -7 -7 -7 -6 -6 -6 -6 -------- Run | Yrd Mat Mat Mat Fac Low Dat Pro Fac Was Fac Hostile Shots Fired 778 | . 29 42 163 130 . . 84 296 . 34 Missed 224 | . 6 11 40 42 . . 23 88 . 14 Damage Taken 8735 | . 304 428 1955 1136 . . 1434 3155 . 323 Core 1615 | . 65 131 264 155 . . 150 669 . 181 Absorbed by Shields . | . . . . . . . . . . . Redirected to Shielding 105 | . . . 105 . . . . . . . Regen/Repaired (Parts) 339 | . . . . 113 . . . 226 . . Core Remaining (%) 69 | 100 74 67 52 . . . 56 . . . Volleys Fired 229 | . 24 21 72 54 . . 14 40 . 4 Largest 3 | . 2 2 2 3 . . 3 3 . 1 Hottest 104 | . 70 46 88 84 . . 84 104 . 52 Shots Fired 500 | . 48 42 143 146 . . 35 82 . 4 Gun 479 | . 48 42 143 146 . . 35 65 . . Cannon 17 | . . . . . . . . 17 . . Launcher 4 | . . . . . . . . . . 4 Special . | . . . . . . . . . . . Kinetic 484 | . 46 42 133 146 . . 35 82 . . Thermal 12 | . 2 . 10 . . . . . . . Explosive 4 | . . . . . . . . . . 4 Electromagnetic . | . . . . . . . . . . . Robot Hit Streak 17 | . 7 9 12 17 . . 6 11 . 1 Robot Miss Streak 11 | . 1 2 6 6 . . 4 11 . 1 Penetration Max 1 | . . . . 1 . . . 1 . . Secondary Targets 11 | . 1 2 3 3 . . . 2 . . Max Gunslinging Chain 1 | . 1 1 1 1 . . . 1 . . Shots Hit Robots 342 | . 33 29 87 100 . . 26 66 . 1 Core Hits 185 | . 12 17 39 57 . . 8 42 . 10 Critical Kills 3 | . . . . . . . 1 2 . . Critical Parts Destroyed 5 | . 1 . 1 . . . 1 2 . . Critical Strikes 10 | . 1 . 1 . . . 2 6 . . Destroy 4 | . 1 . 1 . . . 1 1 . . Blast 2 | . . . . . . . . 2 . . Smash 4 | . . . . . . . 1 3 . . Melee Attacks 44 | . . . . . . . 28 16 . . Impact 44 | . . . . . . . 28 16 . . Slashing . | . . . . . . . . . . . Piercing . | . . . . . . . . . . . Sneak Attacks 3 | . . . . . . . . 3 . . Combat Hostiles . | . . . . . . . . . . . Follow-up Attacks . | . . . . . . . . . . . Damage Inflicted 7225 | . 333 455 1277 2295 . . 582 1726 . 557 Guns 5392 | . 333 455 1277 2216 . . 336 775 . . Cannons 221 | . . . . . . . . 221 . . Explosions 557 | . . . . . . . . . . 557 Melee 973 | . . . . . . . 246 727 . . Ramming 82 | . . . . 79 . . . 3 . . Kinetic 5538 | . 321 455 1214 2216 . . 336 996 . . Thermal 75 | . 12 . 63 . . . . . . . Explosive 557 | . . . . . . . . . . 557 Electromagnetic . | . . . . . . . . . . . Impact 973 | . . . . . . . 246 727 . . Slashing . | . . . . . . . . . . . Piercing . | . . . . . . . . . . . Highest Corruption 19 | . . . . 6 6 6 14 9 19 19 Average Corruption 7 | . . . . 4 6 6 8 5 16 19 Corruption Purged . | . . . . . . . . . . . Corruption Blocked . | . . . . . . . . . . . Effects 46 | . . . . 10 5 3 16 5 3 4 Message Errors 13 | . . . . . 2 1 5 2 3 . Matter Fused 9 | . . . . 3 1 . 3 2 . . Heat Flow Errors 8 | . . . . 2 . 1 3 . . 2 Energy Discharges 1 | . . . . . 1 . . . . . Parts Rejected 1 | . . . . . . . 1 . . . Parts Fused 1 | . . . . . . . . . . 1 Data Loss (minor) 6 | . . . . 2 1 1 . 1 . 1 Data Loss (major) 1 | . . . . . . . 1 . . . Misfires 3 | . . . . 2 . . 1 . . . Alerts 1 | . . . . . . . 1 . . . Weapon Failures 2 | . . . . 1 . . 1 . . . Overload Shots . | . . . . . . . . . . . Overflow Damage 206 | . . . . . . . 6 192 . 8 Projectiles . | . . . . . . . . . . . Explosions 8 | . . . . . . . . . . 8 Melee 198 | . . . . . . . 6 192 . . Knockbacks 10 | . . . . . . . 1 9 . . Impact 3 | . . . . . . . 1 2 . . Kinetic 7 | . . . . . . . . 7 . . Secondary . | . . . . . . . . . . . Self-Inflicted Damage 16 | . . . . . . . . 1 . 15 Shots 1 | . . . . . . . . . . 1 Rammed 1 | . . . . . . . . 1 . . Targets Rammed 12 | . . . . 11 . . . 1 . . Kicked 11 | . . . . 11 . . . . . . Crushed . | . . . . . . . . . . . Highest Temperature 193 | . 18 . 17 163 . 193 175 141 . 187 Average Temperature 38 | . 8 . 5 26 . 106 57 59 . 89 Received Heat Transfer 1671 | . 150 162 963 183 . . 183 12 . 18 Siege Activations . | . . . . . . . . . . . Robots Corrupted . | . . . . . . . . . . . Combat Hostiles . | . . . . . . . . . . . Parts Fried 3 | . . . . . . . . 3 . . Impact Corruptions 10 | . . . . . . . 1 9 . . Robots Melted . | . . . . . . . . . . . Combat Hostiles . | . . . . . . . . . . . Parts Melted . | . . . . . . . . . . . Heat Transferred 185 | . 37 . 148 . . . . . . . Parts Sabotaged . | . . . . . . . . . . . Parts Stolen . | . . . . . . . . . . . Parts Stripped . | . . . . . . . . . . . Power Chain Reactions . | . . . . . . . . . . . Alert | -11 -10 -9 -8 -7 -7 -7 -6 -6 -6 -6 ------- Run | Yrd Mat Mat Mat Fac Low Dat Pro Fac Was Fac Peak Influence 312 | . 147 304 268 312 . . . 198 43 203 Initial 128 | . . 61 128 91 . . . 25 28 30 Average 97 | . 72 187 158 74 . . . 73 36 78 Maximum Alert Level 1 | . . 1 1 1 . . . . . 1 Low Security (%) 86 | . 100 57 58 92 . . . 100 100 99 Level 1 13 | . . 42 41 7 . . . . . . Level 2 . | . . . . . . . . . . . Level 3 . | . . . . . . . . . . . Level 4 . | . . . . . . . . . . . Level 5 . | . . . . . . . . . . . High Security . | . . . . . . . . . . . Max Security . | . . . . . . . . . . . Squads Dispatched 13 | . . 1 3 2 . . . 4 . 3 Investigation 3 | . . . 1 . . . . 2 . . Extermination 2 | . . . . 1 . . . 1 . . Reinforcement 7 | . . 1 2 1 . . . 1 . 2 Assault . | . . . . . . . . . . . Garrison 1 | . . . . . . . . . . 1 Intercept . | . . . . . . . . . . . Searches Triggered . | . . . . . . . . . . . Construction Impeded 1 | . . . . . . . . . . 1 Haulers Reinforced 1 | . . . . . . . . . . 1 Active Scanning Responses . | . . . . . . . . . . . Cargo Convoy Interrupts 1 | . . . . . . . . 1 . . Stealth | -11 -10 -9 -8 -7 -7 -7 -6 -6 -6 -6 --------- Run | Yrd Mat Mat Mat Fac Low Dat Pro Fac Was Fac Distress Signals 4 | . . 1 3 . . . . . . . Communications Jammed . | . . . . . . . . . . . Distress Signals . | . . . . . . . . . . . Times Spotted 138 | . 8 12 25 27 . . 12 36 5 13 Peak Tracking Total 13 | . 4 6 5 4 . . 4 13 5 10 Tactical Retreats 8 | . . . 1 1 . . 2 3 . 1 Traps | -11 -10 -9 -8 -7 -7 -7 -6 -6 -6 -6 ------- Run | Yrd Mat Mat Mat Fac Low Dat Pro Fac Was Fac Traps Triggered 7 | . . . 1 4 . . . 2 . . Indirectly . | . . . . . . . . . . . Trap Hack Attempts . | . . . . . . . . . . . Triggered . | . . . . . . . . . . . Disarmed . | . . . . . . . . . . . Reprogrammed . | . . . . . . . . . . . Reused . | . . . . . . . . . . . Traps Extracted . | . . . . . . . . . . . Installed . | . . . . . . . . . . . Triggered 2 | . . . . . 1 . . 1 . . Machines | -11 -10 -9 -8 -7 -7 -7 -6 -6 -6 -6 ---------- Run | Yrd Mat Mat Mat Fac Low Dat Pro Fac Was Fac Machines Disabled 3 | . . . 1 . . . . . . 2 Max in Single Turn 2 | . . . 1 . . . . . . 2 Garrison Access 1 | . . . . 1 . . . . . . Machines Repaired . | . . . . . . . . . . . Machines Dismantled . | . . . . . . . . . . . Machines Sabotaged . | . . . . . . . . . . . Overloaded Fab Kills . | . . . . . . . . . . . Hacking | -11 -10 -9 -8 -7 -7 -7 -6 -6 -6 -6 --------- Run | Yrd Mat Mat Mat Fac Low Dat Pro Fac Was Fac Machines Accessed 18 | . 3 1 1 7 . 4 . 2 . . Terminals 9 | . 3 1 1 3 . . . 1 . . Fabricators 1 | . . . . 1 . . . . . . Repair Stations 2 | . . . . 1 . . . 1 . . Recycling Units . | . . . . . . . . . . . Scanalyzers 1 | . . . . 1 . . . . . . Garrison Access 1 | . . . . 1 . . . . . . Total Hacks 64 | . 7 1 2 18 . 30 . 6 . . Successful 45 | . 2 1 2 7 . 30 . 3 . . Failed 19 | . 5 . . 11 . . . 3 . . Catastrophic 1 | . . . . 1 . . . . . . Database Lockouts . | . . . . . . . . . . . Manual 9 | . 4 . . 4 . . . 1 . . Terminals 19 | . 7 1 2 8 . . . 1 . . Fabricators 2 | . . . . 2 . . . . . . Repair Stations 7 | . . . . 2 . . . 5 . . Recycling Units . | . . . . . . . . . . . Scanalyzers 2 | . . . . 2 . . . . . . Garrison Access 4 | . . . . 4 . . . . . . Terminal Hacks 35 | . 1 1 2 1 . 30 . . . . Record 11 | . . . . . . 11 . . . . Part Schematic 9 | . . . . . . 9 . . . . Robot Schematic 7 | . . . . . . 7 . . . . Prototype ID Bank 3 | . . . . . . 3 . . . . Level Access Points 2 | . 1 . 1 . . . . . . . Branch Access Points 2 | . . 1 . 1 . . . . . . Alert Level 1 | . . . 1 . . . . . . . Fabricator Hacks 1 | . . . . 1 . . . . . . Network Status 1 | . . . . 1 . . . . . . Repair Station Hacks 5 | . . . . 2 . . . 3 . . Scan Component 3 | . . . . 1 . . . 2 . . Repair 2 | . . . . 1 . . . 1 . . Recycling Unit Hacks . | . . . . . . . . . . . Scanalyzer 2 | . . . . 2 . . . . . . Insert Component 1 | . . . . 1 . . . . . . Analyze 1 | . . . . 1 . . . . . . Garrison Access Hacks 1 | . . . . 1 . . . . . . Seal Access 1 | . . . . 1 . . . . . . Unauthorized Hacks 1 | . 1 . . . . . . . . . Terminals 1 | . 1 . . . . . . . . . Botnet 1 | . 1 . . . . . . . . . Fabricators . | . . . . . . . . . . . Repair Stations . | . . . . . . . . . . . Recycling Units . | . . . . . . . . . . . Scanalyzers . | . . . . . . . . . . . Garrison Access . | . . . . . . . . . . . Data Cores Recovered . | . . . . . . . . . . . Used . | . . . . . . . . . . . Hacking Detections 9 | . 2 1 1 4 . . . 1 . . Full Trace Events 1 | . . . . . . . . 1 . . Feedback Events . | . . . . . . . . . . . Feedback Blocked . | . . . . . . . . . . . Robot Schematics Acquired 7 | . . . . . . 7 . . . . Robots Built . | . . . . . . . . . . . Authchips . | . . . . . . . . . . . Time . | . . . . . . . . . . . Total Robot Build Rating . | . . . . . . . . . . . Part Schematics Acquired 10 | . . . . 1 . 9 . . . . Parts Built . | . . . . . . . . . . . Authchips . | . . . . . . . . . . . Time . | . . . . . . . . . . . Total Part Build Rating . | . . . . . . . . . . . Parts Repaired 2 | . . . . 1 . . . 1 . . Time 69 | . . . . 44 . . . 25 . . Parts Recycled . | . . . . . . . . . . . Recycled Matter . | . . . . . . . . . . . Retrieved Matter . | . . . . . . . . . . . Retrieved Components . | . . . . . . . . . . . Parts Scanalyzed 1 | . . . . 1 . . . . . . Part Schematics Acquired 1 | . . . . 1 . . . . . . Parts Damaged . | . . . . . . . . . . . Bothacking | -11 -10 -9 -8 -7 -7 -7 -6 -6 -6 -6 ------------ Run | Yrd Mat Mat Mat Fac Low Dat Pro Fac Was Fac Used RIF Installer . | . . . . . . . . . . . Robots Hacked . | . . . . . . . . . . . Non-combat . | . . . . . . . . . . . Combat . | . . . . . . . . . . . Robot Hacks Applied . | . . . . . . . . . . . Relay Couplers Released . | . . . . . . . . . . . Fabnet Peak Effective % . | . . . . . . . . . . . Robots Rewired . | . . . . . . . . . . . Allies Hacked . | . . . . . . . . . . . Hacks Repelled . | . . . . . . . . . . . Allies | -11 -10 -9 -8 -7 -7 -7 -6 -6 -6 -6 -------- Run | Yrd Mat Mat Mat Fac Low Dat Pro Fac Was Fac Total Allies 1 | . . . . . . . 1 . . . Largest Group 1 | . . . . . . . 1 . . . Highest-Rated Group 96 | . . . . . . . 96 . . . Highest-Rated Ally 96 | . . . . . . . 96 . . . Total Orders . | . . . . . . . . . . . Ally Attacks 14 | . . . . . . . 14 . . . Total Damage 337 | . . . . . . . 337 . . . Kills 3 | . . . . . . . 3 . . . Allies Corrupted . | . . . . . . . . . . . Allies Melted . | . . . . . . . . . . . Intel | -11 -10 -9 -8 -7 -7 -7 -6 -6 -6 -6 ------- Run | Yrd Mat Mat Mat Fac Low Dat Pro Fac Was Fac Robot Analysis Total . | . . . . . . . . . . . Derelict Logs Recovered 2 | . . . . . 1 . 1 . . . Drone Launches . | . . . . . . . . . . . Drone Recoveries . | . . . . . . . . . . . Exploration | -11 -10 -9 -8 -7 -7 -7 -6 -6 -6 -6 ------------- Run | Yrd Mat Mat Mat Fac Low Dat Pro Fac Was Fac Turns Passed 5205 | . 365 373 746 1678 264 113 501 998 58 109 Spaces Moved 3192 | 1 214 211 358 1082 205 85 268 526 100 142 Core 193 | . . . . . . . . 40 100 53 Treads . | . . . . . . . . . . . Legs 2442 | 1 66 . 249 1082 205 85 268 486 . . Wheels 492 | . 148 211 109 . . . . . . 24 Hover 65 | . . . . . . . . . . 65 Flight . | . . . . . . . . . . . Fastest Speed 50 | 120 90 130 120 120 127 127 125 50 50 50 Average Speed 124 | 120 130 133 126 125 127 127 125 143 51 63 Slowest Speed 360 | 120 135 150 200 127 127 127 126 360 150 100 Overloaded Moves . | . . . . . . . . . . . Propulsion Burnouts . | . . . . . . . . . . . Robots Hopped . | . . . . . . . . . . . Cave-ins Triggered 1 | . . . . . . . 1 . . . Exploration Rate (%) 34 | 2 39 25 40 26 42 69 40 17 73 5 Regions Visited 10 Branch Regions 3 Pre-discovered Areas 1 | . . . . . . 1 . . . . Known Exits Taken 5 | . 1 . 1 1 . 1 1 . . . Unknown Exits Taken 3 | 1 . 1 . . 1 . . . . . Scrap Searched 2 | . . . . . 2 . . . . . Spaces Dug 23 | . . . . . . . 20 3 . . Terrain Destroyed 71 | . . . . . . . 21 8 . 42 Melee 23 | . . . . . . . 20 3 . . Projectile 6 | . . . . . . . 1 5 . . AOE 42 | . . . . . . . . . . 42 Terrain Rammed . | . . . . . . . . . . . Walls Destroyed . | . . . . . . . . . . . Machines Disabled . | . . . . . . . . . . . Actions | -11 -10 -9 -8 -7 -7 -7 -6 -6 -6 -6 --------- Run | Yrd Mat Mat Mat Fac Low Dat Pro Fac Was Fac Total 3902 | . 257 258 507 1298 208 90 351 670 106 157 Wait 176 | . 5 2 19 85 . . 24 41 . . Move 3182 | . 213 210 357 1081 204 84 266 526 99 142 Hop . | . . . . . . . . . . . Pick Up 59 | . 5 10 12 17 2 . 2 4 4 3 Fast Attach 47 | . 4 2 12 5 . 3 4 14 1 2 Attach 48 | . 2 4 13 5 . . 9 12 . 3 Detach 14 | . 3 1 2 1 . . . 5 1 1 Swap 34 | . . 6 8 13 1 . 3 3 . . Drop 56 | . 1 2 12 26 1 3 . 8 1 2 Fire 229 | . 24 21 72 54 . . 14 40 . 4 Melee 44 | . . . . . . . 28 16 . . Ram 1 | . . . . . . . . 1 . . Kick 11 | . . . . 11 . . . . . . Crush . | . . . . . . . . . . . Escape Stasis 1 | . . . . . . . 1 . . . Rewire . | . . . . . . . . . . . Trap . | . . . . . . . . . . . Miscellaneous . | . . . . . . . . . . . Route ------- -11/Scrapyard -10/Materials (discovered 4 exits: *Mat x3 / [*Min]) -9/Materials (discovered 3 exits: *Mat / Min x2) -8/Materials (discovered 3 exits: *Fac x3) -7/Factory (discovered 3 exits: *Fac / *Low x2) -7/Lower Caves -7/Data Miner -6/Proximity Caves -6/Factory -6/Waste -6/Factory History --------- Turn | Location | Event 1 | -11/Scrapyard | Discovered new exit (range 0) 1 | -11/Scrapyard | Entered Materials 42 | -10/Materials | Identified exit to Materials 223 | -10/Materials | Discovered new exit (range 8) 301 | -10/Materials | Build established: Mutant 366 | -10/Materials | Entered another Materials area 366 | -9/Materials | Evolved 2 slots: Utility x2 484 | -9/Materials | Identified exit to Mines 496 | -9/Materials | Lost 3 parts (3n) 616 | -9/Materials | Discovered new exit (range 5) 739 | -9/Materials | Entered another Materials area 739 | -8/Materials | Evolved 2 slots: Propulsion x1, Utility x1 969 | -8/Materials | Lost 4 parts (1p1n2u) 1154 | -8/Materials | Lost 12 parts (2p3n2u5w) 1318 | -8/Materials | Identified exit to Factory 1485 | -8/Materials | Entered Factory 1485 | -7/Factory | Evolved 2 slots: Propulsion x1, Weapon x1 1656 | -7/Factory | Build established: Scavenger-Mutant 1721 | -7/Factory | Repaired Gauss Rifle 1977 | -7/Factory | Discovered new exit (range 15) 2135 | -7/Factory | Build established: Mutant 2182 | -7/Factory | Identified exit to Factory 2274 | -7/Factory | Identified exit to Lower Caves 3143 | -7/Factory | Destroyed 7 combat bots 3163 | -7/Factory | Entered Lower Caves 3303 | -7/Lower Caves | Build established: Skirmisher 3311 | -7/Lower Caves | Learned Factory terminal intel 3425 | -7/Lower Caves | A Derelict revealed a hidden shortcut to meet someone special 3427 | -7/Lower Caves | Entered Data Miner 3427 | -7/Data Miner | Discovered new exit (range 6) 3453 | -7/Data Miner | Met Data Miner 3482 | -7/Data Miner | Learned location of Section 7 (-3) 3482 | -7/Data Miner | Acquired the access code to Warlord's prototype stash 3500 | -7/Data Miner | Received God Mode back door access code from Data Miner 3539 | -7/Data Miner | Identified exit to Proximity Caves 3540 | -7/Data Miner | Entered Proximity Caves 3604 | -6/Proximity Caves | Lost 7 parts (1p2n2u2w) 3718 | -6/Proximity Caves | Build established: Mutant 3849 | -6/Proximity Caves | Crushed by falling debris 3850 | -6/Proximity Caves | System corruption reached 10% 3866 | -6/Proximity Caves | Escorted by Enhanced Grunt 3880 | -6/Proximity Caves | Lost 5 parts (2p1n1u1w) 4029 | -6/Proximity Caves | Discovered exit to Factory (range 6) 4041 | -6/Proximity Caves | Entered Factory 4041 | -6/Factory | Evolved 2 slots: Utility x2 4042 | -6/Factory | Loaded intel: 26 terminal locations 4190 | -6/Factory | Repaired Lyr. Medium Armor Plating 4309 | -6/Factory | Lost 10 parts (1p4n1u4w) 5003 | -6/Factory | Cargo convoy interrupted 5010 | -6/Factory | Released all parts (11) 5023 | -6/Factory | Core integrity fell below 50% 5039 | -6/Factory | Manually triggered Chute Trap 5039 | -6/Factory | Sucked down chute 5039 | -6/Factory | Entered Waste 5045 | -6/Waste | Spotted C-40 Crusher 5054 | -6/Waste | EMP discharged 5054 | -6/Waste | System corruption reached 10% 5054 | -6/Waste | Spotted C-40 Crusher 5062 | -6/Waste | Spotted C-40 Crusher 5066 | -6/Waste | Lost 5 parts (1p4u) 5069 | -6/Waste | Spotted C-40 Crusher 5075 | -6/Waste | Found Unknown Launcher 5088 | -6/Waste | Spotted C-40 Crusher 5091 | -6/Waste | Discovered new exit (range 12) 5097 | -6/Waste | Entered Factory 5155 | -6/Factory | Identified Fusion Bomb Launcher 5156 | -6/Factory | Garrison activated, responded to threat 5167 | -6/Factory | Core integrity fell below 20% 5206 | -6/Factory | Destroyed by S-27 Virus with Autogun Last Messages --------------- ALERT: All DSF locations entering lockdown mode. U-05 Engineer lays Concrete. Destroyed Welding Torch. Imp. Antigrav System destroyed. Destroyed Imp. Antigrav System. Penetrated by Slug. Fusion Bomb Launcher destroyed. ALERT: Construction progress impeded, dispatching reinforcements to local area. The unstable cave ceiling collapses. Dropped Mic. Antimatter Reactor. U-05 Engineer lays Concrete. System corrupted: Heat flow error (+160). K-01 Serf collects debris. T-07 Excavator is excavating. Acquired Gravmag Array. System corrupted: Heat flow error (+221). Slug penetrates Wall. Dropped Com. Matter Pod. Acquired Imp. Targeting Computer. Map ----- +----------------------------------------------------+ | # ????""""" #??????????????????????????? | | + ?????""T"" #??????????????????????????? | | # ???? #??????????????????????????? | | # ?""" #??????????????????????????? | | T# # * # """" #??????????????????????????? | | ???# # """" #??????????????????????????? | | ???# # """" [ #??????????????????????????? | | ???# # """" #??????????????????????????? | | ???# # #??????????????????????????? | | ???# # #??????????????????????????? | | #### # #??????????????????????????? | | # ! #??????????????????????????? | | ###+#################### ##?????????????? | | ?????????????? | | ^ ?????????????? | | """"""""" ??????????????? | | ???????????? | | h """"""""" ??????????????? | | #####+###############g #?????????????? | | # # """"""""" ??????????????? | | # " " # ! #?????????????? | | """ """ # " " # """"""""" ??????????????? | | """ """ #" " " # #?????????????? | | """ """ #" " " /ss """"""""" #?????????????? | | #" " " #ss #?????????????? | | """ """ #T " " # @ #?????????????? | | """ """ #" " " ##### """####??????????????? | | """ """ #" " " #???#"" F""#?????????????????? | | #" " " #???#""""""#?????????????????? | | # #???? """" #?????????????????? | | #########????#######?????????????????? | | #############????????????????????????????????????? | | | | | | | | | | | | | | | | | | | | | | | | | | | | | | | | | | | | | +----------------------------------------------------+ Best States ------------- Heat Dissipation 48 Energy Generation 21 Energy Capacity 700 Matter Stores 300 Matter Capacity 550 Sight Range 16 Robot Scan Range 15 Terrain Scan Density 10 Additional Mass Support 9 Armor Coverage 225 Weapon Shielding 66 Evasion (%) 60 Armor Integrity Analysis 30 Offensive Hacking 10 Defensive Hacking 12 Item Schematics ----------------- Powered Hammer | -7/Factory | Scanalyzed Combat Drone Bay | -7/Data Miner | Free Lgt. Regenerative Plating | -7/Data Miner | Free Cld. Cesium-ion Thruster | -7/Data Miner | Free Thermal Defense Suite | -7/Data Miner | Free Force Rifle | -7/Data Miner | Free Linear Gravjet | -7/Data Miner | Free Point Defense System | -7/Data Miner | Free Imp. Remote Datajack | -7/Data Miner | Free Adv. Shield Generator | -7/Data Miner | Free Robot Schematics ------------------ R-10 Processor | -7/Data Miner | Free W-25 Informer | -7/Data Miner | Free G-47 Trooper | -7/Data Miner | Free O-24 Administrator | -7/Data Miner | Free S-27 Virus | -7/Data Miner | Free M-22 Extractor | -7/Data Miner | Free B-60 Warrior | -7/Data Miner | Free Fabricated ------------ Nothing Alien Tech Used ----------------- None Achievements -------------- Wheee! Challenges ------------ None Game ------ Seed EnergyMolecularNetwork Manual? 0 Play Time 00:59:11 Cumulative 135.1 hours Start 2024.05.10 @ 13:45:13 End 2024.05.10 @ 15:35:34 Sessions 1 Manual Loads 0 Difficulty Rogue Special Mode None Game No. 227 Rogue 225 Adventurer 2 Explorer 0 Win Type - Total 4 Types 3/0/0/1/0/0/0/0/0 Lore% 60 Gallery% 63 Achievement% 48 Wizard Run 0 Options --------- Layout 0 ASCII 0 Keyboard 1 Movement Numpad Keybinds 1 Fullscreen 2 Font 18/SmallcapsGlow Map View 76x50 Zoom Use 0% Tactical HUD 1 Map Filters NONE Filters NONE Steam 1 RUN: 306ed242-fbc5-436e-88c1-f29eaaced172